bitfinex/quotes_ETHUSD_20250415
["timestamp","ask_amount","ask_price","bid_price","bid_amount"]
[1744744180660,13.20375748,1609.5,1609.1,13.21034899]
[1744744180818,13.20375748,1609.5,1609.0,0.55]
[1744744180819,6.21398755,1609.3,1609.0,10.54268179]
[1744744181160,6.21358061,1609.4,1609.1,6.2145938]
[1744744181656,0.7773,1609.5,1609.2,6.21416483]
[1744744181657,13.20376789,1609.5,1609.2,6.21416483]
[1744744181826,13.20395726,1609.5,1609.2,6.21416483]
[1744744182257,13.2038068,1609.5,1609.2,6.21416483]
[1744744182550,6.99049042,1609.5,1609.1,6.21452634]
[1744744182717,13.20378837,1609.5,1609.2,6.21415846]
[1744744182918,6.99049042,1609.5,1609.2,12.42831692]
[1744744183131,6.99049042,1609.5,1609.2,6.21415846]
[1744744183734,13.2039728,1609.5,1609.1,12.42908514]
[1744744183930,13.2039728,1609.5,1609.1,6.21454257]
[1744744183931,6.21353359,1609.4,1609.1,6.21454257]
[1744744184255,6.21368284,1609.4,1609.1,6.2145403]
[1744744184421,12.42739484,1609.4,1609.1,6.2145403]
[1744744184618,6.21393832,1609.3,1609.0,4.3278]
[1744744184959,6.21393832,1609.3,1609.0,7.54274856]
[1744744185162,12.42737079,1609.4,1609.1,6.21463772]
[1744744185349,6.2139185,1609.3,1609.0,7.54271076]
[1744744185534,6.2139185,1609.3,1609.0,13.75763966]
[1744744185938,6.2139185,1609.3,1609.0,7.54271076]
[1744744186185,6.2139185,1609.3,1609.0,13.75764834]
[1744744186794,6.2139185,1609.3,1608.9,0.47506417]
[1744744186795,0.8143,1609.2,1608.9,0.47506417]
[1744744186936,7.028571,1609.2,1608.7,5.531]
[1744744187140,6.21552283,1608.9,1608.7,5.531]
[1744744187439,6.21552283,1608.9,1608.6,13.19975536]
[1744744188230,7.01165278,1609.0,1608.7,6.21615979]
[1744744188432,7.01087643,1609.2,1608.9,6.21531268]
[1744744188632,6.21466483,1609.1,1608.8,6.21566149]
[1744744188867,6.21466483,1609.1,1608.8,12.43136248]
[1744744189166,6.21466483,1609.1,1608.8,6.21566149]
[1744744189586,12.43056407,1609.0,1608.7,6.21607871]
[1744744189736,6.21527037,1609.0,1608.7,6.21607871]
[1744744190055,6.21527037,1609.0,1608.7,12.43215601]
[1744744190256,6.21575609,1608.9,1608.6,7.53328623]
[1744744190456,13.2374951,1608.8,1608.5,9.21687192]
[1744744190968,6.2163152,1608.7,1608.4,12.21886779]
[1744744191132,12.43275809,1608.7,1608.4,12.21886779]
[1744744191968,7.02141832,1608.8,1608.4,18.43610637]
[1744744192138,7.02141832,1608.8,1608.5,12.43371825]
[1744744192338,7.02141832,1608.8,1608.5,6.2168545]
[1744744192540,7.02141832,1608.8,1608.5,7.0404545]
[1744744192945,6.21636991,1608.7,1608.5,0.8236]
[1744744193146,7.02134283,1608.8,1608.5,7.04038093]
[1744744193458,6.21622068,1608.7,1608.4,12.90602821]
[1744744194395,7.02134283,1608.8,1608.5,6.21687422]
[1744744194802,6.21641902,1608.7,1608.4,6.68878783]
[1744744195151,6.21641902,1608.7,1608.4,12.90603846]
[1744744195464,6.21641902,1608.7,1608.4,12.90602515]
[1744744195699,12.43275714,1608.7,1608.4,6.68878783]
[1744744195851,6.21633812,1608.7,1608.4,6.68878783]
[1744744196049,6.21633812,1608.7,1608.3,3.0]
[1744744196050,6.21725523,1608.5,1608.3,3.0]
[1744744196359,6.21735886,1608.4,1608.3,3.0]
[1744744197483,6.21715662,1608.5,1608.3,3.46283001]
[1744744197684,6.21714524,1608.5,1608.3,3.0]
[1744744197855,6.21711795,1608.5,1608.3,3.0]
[1744744198061,6.21710783,1608.5,1608.3,3.0]
[1744744198799,12.43432961,1608.5,1608.3,3.0]
[1744744199755,6.21710783,1608.5,1608.3,3.0]
[1744744199951,13.20639607,1608.6,1608.3,9.21755553]
[1744744200398,6.21699332,1608.5,1608.3,3.0]
[1744744200580,6.21749806,1608.4,1608.1,0.7634]
[1744744200887,12.43521162,1608.4,1608.1,6.98189879]
[1744744201055,6.21749806,1608.4,1608.1,7.04407751]
[1744744201260,12.43501785,1608.4,1608.1,7.04407751]
[1744744201715,6.21778847,1608.3,1608.1,0.7634]
[1744744201919,13.19189075,1608.3,1608.0,15.36847058]
[1744744202066,6.97398847,1608.3,1608.0,15.36846447]
[1744744202257,6.97398847,1608.3,1608.0,21.58725221]
[1744744202685,13.19189432,1608.3,1608.0,15.36846447]
[1744744202886,13.19189432,1608.3,1608.0,9.83746447]
[1744744203086,13.19189432,1608.3,1608.0,6.21878774]
[1744744203286,6.97398847,1608.3,1608.0,6.21878774]
[1744744203507,6.97398847,1608.3,1608.0,12.43757548]
[1744744203866,0.7511,1608.5,1608.3,6.21769612]
[1744744204163,6.21709112,1608.5,1608.2,16.84143521]
[1744744204368,12.43421107,1608.5,1608.2,7.00472725]
[1744744204568,6.21709112,1608.5,1608.2,7.0047147]
[1744744205380,6.21709112,1608.5,1608.2,13.2227327]
[1744744205592,6.21709112,1608.5,1608.2,7.0047147]
[1744744205790,6.21709112,1608.5,1608.2,13.22272357]
[1744744205988,6.21669131,1608.6,1608.2,7.00470887]
[1744744206315,6.9674312,1608.7,1608.4,6.21723627]
[1744744206789,6.9674312,1608.7,1608.4,12.4344753]
[1744744207189,6.9674312,1608.7,1608.4,6.21723627]
[1744744207503,0.7511,1608.7,1608.3,3.0]
[1744744207711,6.21700807,1608.5,1608.3,3.0]
[1744744207885,12.4341865,1608.5,1608.3,3.0]
[1744744208089,6.21700807,1608.5,1608.3,3.0]
[1744744208793,6.21666053,1608.6,1608.3,9.21765975]
[1744744208794,12.43353282,1608.6,1608.3,9.21765975]
[1744744209302,6.21697977,1608.5,1608.3,9.21765975]
[1744744209498,6.21697977,1608.5,1608.3,3.0]
[1744744209706,6.21666053,1608.6,1608.3,9.21772592]
[1744744209874,6.21666053,1608.6,1608.3,15.43536784]
[1744744210075,6.21666053,1608.6,1608.3,9.21764192]
[1744744210287,6.21699338,1608.5,1608.3,3.0]
[1744744210488,6.21699338,1608.5,1608.2,16.84140581]
[1744744210896,12.43338981,1608.6,1608.3,6.21769857]
[1744744211080,12.43339341,1608.6,1608.3,6.21769857]
[1744744211279,6.21697436,1608.5,1608.2,16.84138415]
[1744744211521,12.43417988,1608.5,1608.2,10.62338008]
[1744744211780,6.21697436,1608.5,1608.2,16.84141329]
[1744744212082,6.21697436,1608.5,1608.3,6.21773604]
[1744744212905,12.43356394,1608.6,1608.3,6.21773604]
[1744744213491,6.21664141,1608.6,1608.3,6.21773604]
[1744744213886,6.21660497,1608.6,1608.3,0.55]
[1744744214079,6.21660497,1608.6,1608.3,12.98517682]
[1744744215074,6.21660497,1608.6,1608.3,6.7675497]
[1744744215276,6.96743288,1608.7,1608.1,9.21844548]
[1744744215277,6.2173622,1608.4,1608.1,16.25612758]
[1744744215605,6.2173622,1608.4,1608.1,10.03751675]
[1744744215807,6.21786852,1608.3,1608.0,7.46802346]
[1744744216016,0.7578,1608.4,1608.0,4.24922115]
[1744744216180,0.7578,1608.4,1608.2,6.21800587]
[1744744216509,0.7578,1608.4,1608.1,6.21841209]
[1744744216876,0.7578,1608.4,1608.1,6.28058778]
[1744744217076,7.04659935,1608.8,1608.3,0.8018]
[1744744217294,6.21634995,1608.7,1608.4,12.4344675]
[1744744217603,12.43272874,1608.7,1608.4,6.21723331]
[1744744217838,2.36711862,1608.8,1608.3,7.0194986]
[1744744217839,0.8306,1608.8,1608.3,3.8018]
[1744744218017,0.7779,1609.0,1608.8,6.21556257]
[1744744218174,10.27207903,1609.4,1608.9,0.06214986]
[1744744218373,10.27207903,1609.4,1608.9,6.21534409]
[1744744218374,6.21443527,1609.2,1608.9,6.21534409]
[1744744218606,6.21432204,1609.2,1608.8,11.19903115]
[1744744218931,6.21432204,1609.2,1608.9,6.27746659]
[1744744218932,10.27269777,1609.2,1608.9,6.27746659]
[1744744219078,16.48733671,1609.2,1608.9,6.27748012]
[1744744219602,16.48733671,1609.2,1608.9,0.06214516]
[1744744221123,7.03380135,1609.1,1608.8,3.0]
[1744744221285,7.03380135,1609.1,1608.7,6.21608255]
[1744744221286,12.43038355,1609.0,1608.7,6.21608255]
[1744744221479,12.43038355,1609.0,1608.7,3.0]
[1744744221686,6.21583657,1608.8,1608.6,0.7777]
[1744744221906,6.2155505,1608.9,1608.6,0.7777]
[1744744222115,6.2155505,1608.9,1608.6,7.46964237]
[1744744222417,6.2155505,1608.9,1608.6,7.46962824]
[1744744222795,6.2155505,1608.9,1608.6,1.25317584]
[1744744222996,6.21593054,1608.8,1608.6,1.25317584]
[1744744223216,6.2155505,1608.9,1608.6,7.46958799]
[1744744224031,12.4311292,1608.9,1608.6,7.46958799]
[1744744224230,6.21592283,1608.8,1608.6,1.25317584]
[1744744224846,6.2155505,1608.9,1608.6,7.46970515]
[1744744225000,12.43123502,1608.9,1608.6,7.46970515]
[1744744225730,6.2155505,1608.9,1608.6,7.46970515]
[1744744225927,6.21505056,1609.0,1608.6,1.25317584]
[1744744226138,12.43027264,1609.0,1608.7,6.2160714]
[1744744226347,6.21542818,1608.9,1608.6,13.6861727]
[1744744226695,6.21542818,1608.9,1608.6,7.46965024]
[1744744226910,6.21542818,1608.9,1608.6,7.46962695]
[1744744227512,6.21542818,1608.9,1608.6,13.68608574]
[1744744228008,6.21542818,1608.9,1608.6,7.46962695]
[1744744228215,11.74550548,1609.2,1608.7,4.16867673]
[1744744228413,5.531,1609.2,1608.8,6.2157072]
[1744744228615,12.42978383,1609.1,1608.8,6.2157072]
[1744744228929,6.21483693,1609.1,1608.8,12.43141524]
[1744744229222,6.21483693,1609.1,1608.8,6.2157072]
[1744744229420,12.43051858,1609.0,1608.7,10.38479701]
[1744744229728,12.43034402,1609.0,1608.7,10.38476516]
[1744744229922,6.2151615,1609.0,1608.7,16.60083724]
[1744744230123,6.21471713,1609.1,1608.8,6.21576747]
[1744744230321,12.42956564,1609.1,1608.8,6.21576747]
[1744744230639,17.95981444,1609.2,1608.8,6.21576747]
[1744744230809,6.21405201,1609.3,1609.0,6.21492201]
[1744744231833,12.42812487,1609.3,1609.0,6.21492201]
[1744744232635,6.2142819,1609.2,1608.9,10.66320221]
[1744744232930,6.21400469,1609.3,1608.9,7.10667127]
[1744744233136,12.42804425,1609.3,1609.0,6.21499209]
[1744744234131,6.21427584,1609.2,1609.0,6.21499209]
[1744744237545,6.21427584,1609.2,1608.9,7.04452548]
[1744744237708,6.21427584,1609.2,1608.9,13.2598301]
[1744744238439,6.21479666,1609.1,1608.8,20.96142163]
[1744744238640,6.21513613,1609.0,1608.8,8.53]
[1744744238830,12.4303239,1609.0,1608.8,8.53]
[1744744239011,6.21513613,1609.0,1608.8,8.53]
[1744744239208,6.21465415,1609.1,1608.7,0.8071]
[1744744239542,12.43134411,1608.9,1608.6,6.69205123]
[1744744239737,6.21594513,1608.8,1608.6,3.47547584]
[1744744239914,12.43206619,1608.8,1608.6,3.47547584]
[1744744240309,0.7949,1609.0,1608.6,0.47547584]
[1744744240526,6.21563602,1608.9,1608.6,6.21644128]
[1744744240725,6.21582745,1608.8,1608.5,13.25855287]
[1744744240910,6.21582745,1608.8,1608.5,13.25856978]
[1744744241522,6.21582745,1608.8,1608.5,7.04170316]
[1744744241734,6.21582745,1608.8,1608.5,13.72372328]
[1744744241924,12.43184918,1608.8,1608.5,7.50685628]
[1744744242106,12.43185944,1608.8,1608.5,7.50685628]
[1744744242641,6.21582745,1608.8,1608.5,7.50685628]
[1744744242938,12.43177763,1608.8,1608.5,7.50685628]
[1744744243311,12.43178909,1608.8,1608.5,7.50685628]
[1744744243513,6.21623579,1608.7,1608.5,1.29005312]
[1744744244837,6.21591179,1608.8,1608.5,7.50688235]
[1744744245043,12.43185001,1608.8,1608.5,1.29005312]
[1744744245341,6.21625996,1608.7,1608.5,1.29005312]
[1744744245542,12.43264604,1608.7,1608.5,1.29005312]
[1744744245763,12.43264392,1608.7,1608.5,1.29005312]
[1744744245918,6.21625996,1608.7,1608.5,1.29005312]
[1744744246113,6.21625996,1608.7,1608.5,0.8249]
[1744744246317,6.98799276,1608.7,1608.4,10.52567673]
[1744744246518,6.21629276,1608.7,1608.4,22.96020284]
[1744744246824,6.21620564,1608.7,1608.4,22.96020109]
[1744744247234,6.21594498,1608.8,1608.5,6.27895646]
[1744744247437,6.21550168,1608.9,1608.6,9.83515689]
[1744744247747,12.43105511,1608.9,1608.6,10.66295689]
[1744744247947,6.21550168,1608.9,1608.6,16.87943706]
[1744744248817,0.7769,1609.3,1608.8,9.83421081]
[1744744249021,12.42983918,1609.1,1608.8,9.83421081]
[1744744249419,6.99096511,1609.3,1609.0,10.63580703]
[1744744249640,13.20504209,1609.3,1609.0,10.63580703]
[1744744250236,6.99096511,1609.3,1609.0,10.63580703]
[1744744250432,13.20501723,1609.3,1609.0,10.63580703]
[1744744250733,13.20500424,1609.3,1609.0,10.63580703]
[1744744251137,13.20500424,1609.3,1609.0,4.42077673]
[1744744251341,6.21429254,1609.2,1609.0,0.8021]
[1744744254751,6.21429254,1609.2,1608.9,12.98060904]
[1744744254955,6.21491149,1609.1,1608.8,13.04019426]
[1744744255135,6.21561887,1608.9,1608.6,10.66263891]
[1744744255322,6.21465415,1609.1,1608.6,4.97589487]
[1744744255526,13.26136197,1609.2,1608.8,10.63420308]
[1744744255726,6.21466585,1609.1,1608.8,16.84989759]
[1744744255927,13.26158078,1609.2,1608.8,16.84989759]
[1744744256127,14.58773886,1609.2,1608.8,16.84989759]
[1744744256550,6.21467193,1609.1,1608.8,10.63420308]
[1744744256723,6.21467193,1609.1,1608.8,16.84991208]
[1744744256921,6.21467193,1609.1,1608.8,17.64291208]
[1744744257134,6.21467193,1609.1,1608.8,11.42720308]
[1744744257626,6.21467193,1609.1,1608.8,17.64291595]
[1744744258049,0.7833,1609.5,1609.1,6.21449513]
[1744744258256,0.7833,1609.5,1609.4,6.21349571]
[1744744258556,6.99586399,1609.7,1609.4,6.21349571]
[1744744258755,9.27520288,1609.7,1609.4,6.21349571]
[1744744258961,15.48776898,1609.7,1609.4,6.21349571]
[1744744259454,6.21272389,1609.6,1609.3,13.1852691]
[1744744259826,6.21272389,1609.6,1609.3,13.18525542]
[1744744260240,6.2133331,1609.5,1609.3,0.7578]
[1744744260435,6.21361038,1609.4,1609.2,4.44327673]
[1744744260634,6.8344624,1609.5,1609.2,10.65753323]
[1744744260635,6.21312909,1609.5,1609.2,10.65753323]
[1744744260869,6.21374175,1609.4,1609.2,4.44327673]
[1744744261059,6.21374175,1609.4,1609.1,9.21464864]
[1744744261369,6.21374175,1609.4,1609.1,15.42920156]
[1744744261542,6.21277321,1609.6,1609.2,10.44495899]
[1744744261737,6.21349571,1609.4,1609.3,0.8206]
[1744744262050,6.21349571,1609.4,1609.2,3.61867673]
[1744744262638,12.4271372,1609.4,1609.2,3.61867673]
[1744744262838,6.21349571,1609.4,1609.2,3.61867673]
[1744744263039,12.42717379,1609.4,1609.2,3.61867673]
[1744744263569,6.21349571,1609.4,1609.2,3.61867673]
[1744744263875,12.42650688,1609.5,1609.2,3.61867673]
[1744744264167,12.42650688,1609.5,1609.2,9.83289809]
[1744744264873,6.21357019,1609.4,1609.2,3.61867673]
[1744744265068,0.7899,1609.7,1609.3,0.06213758]
[1744744265239,7.00240064,1609.7,1609.4,6.21338456]
[1744744265439,6.21250064,1609.7,1609.4,16.1075759]
[1744744265660,6.21250064,1609.7,1609.4,16.04544585]
[1744744265971,6.98465914,1609.9,1609.6,10.58672933]
[1744744266174,6.98465914,1609.9,1609.5,9.89380609]
[1744744266175,6.21223922,1609.8,1609.5,9.89380609]
[1744744266481,6.21260626,1609.7,1609.4,16.80088405]
[1744744266635,12.42515488,1609.7,1609.4,10.58751554]
[1744744266839,12.42491257,1609.7,1609.4,10.58766688]
[1744744267062,6.21273197,1609.6,1609.4,4.37417673]
[1744744267876,12.42506408,1609.7,1609.4,4.37417673]
[1744744268241,12.42506408,1609.7,1609.1,6.67576037]
[1744744268242,6.21349571,1609.4,1609.0,0.7898]
[1744744268442,0.8062,1609.2,1608.9,6.21504213]
[1744744268639,6.21400338,1609.3,1608.9,9.83371886]
[1744744269070,7.03262717,1609.4,1609.0,12.42984992]
[1744744269273,6.21346972,1609.5,1609.1,11.19146011]
[1744744269460,7.03188054,1609.6,1609.2,6.21408059]
[1744744269661,12.42580917,1609.6,1609.2,12.4282277]
[1744744269969,6.21310966,1609.5,1609.1,4.97707673]
[1744744270175,6.2139921,1609.3,1609.1,0.8084]
[1744744270470,6.21449248,1609.2,1609.0,3.8741435]
[1744744271771,6.21449248,1609.2,1609.0,0.8741435]
[1744744271945,6.21449248,1609.2,1609.0,0.812]
[1744744272144,6.21442364,1609.2,1609.0,0.812]
[1744744272368,12.42889932,1609.2,1609.0,0.812]
[1744744272773,6.21442364,1609.2,1609.0,0.87414356]
[1744744273378,6.21442364,1609.2,1609.0,0.812]
[1744744274081,6.21442364,1609.2,1609.0,0.87414359]
[1744744274247,6.21465415,1609.1,1609.0,0.812]
[1744744274445,6.21442364,1609.2,1609.0,0.812]
[1744744275367,6.98704565,1609.5,1609.2,6.21412117]
[1744744275368,6.98711335,1609.5,1609.2,6.21412117]
[1744744275872,6.21388011,1609.4,1609.1,4.96867673]
[1744744276051,12.42722522,1609.4,1609.1,4.96867673]
[1744744276248,6.21349571,1609.4,1609.1,11.18327864]
[1744744276450,12.42726633,1609.4,1609.1,11.18327864]
[1744744276651,12.42726633,1609.4,1609.1,11.64402853]
[1744744277178,6.21349571,1609.4,1609.1,11.64394189]
[1744744277682,6.21349571,1609.4,1609.1,11.09394189]
[1744744278184,6.213223,1609.5,1609.2,6.21425079]
[1744744278351,12.42649718,1609.5,1609.2,6.21425079]
[1744744279987,6.21426795,1609.2,1609.1,4.26074989]
[1744744280190,6.21426795,1609.2,1609.1,3.8]
[1744744280696,6.21390038,1609.3,1609.1,0.8]
[1744744280860,7.04176795,1609.2,1609.1,0.8]
[1744744281272,7.04176795,1609.2,1608.6,7.43893984]
[1744744281273,12.43080864,1609.0,1608.6,13.65541435]
[1744744281450,6.21521873,1609.0,1608.7,9.89694795]
[1744744281785,12.43050572,1609.0,1608.7,9.89694795]
[1744744281954,12.43050572,1609.0,1608.7,9.83479265]
[1744744282156,6.2154495,1608.9,1608.7,3.61867673]
[1744744282356,7.02888956,1608.8,1608.6,3.0]
[1744744282661,6.21544047,1608.9,1608.6,9.21653987]
[1744744282851,6.21544047,1608.9,1608.6,9.21646606]
[1744744283296,6.21542668,1608.9,1608.4,0.7677]
[1744744283486,6.21749338,1608.4,1608.2,6.3283]
[1744744283653,6.21713719,1608.5,1608.2,12.54610374]
[1744744283854,6.21754152,1608.4,1608.1,3.0]
[1744744284455,6.99799157,1608.6,1608.1,0.06217769]
[1744744284683,6.2180089,1608.3,1608.0,4.89812083]
[1744744284888,6.2180089,1608.3,1608.0,11.11700056]
[1744744285379,6.2180089,1608.3,1608.0,4.89812083]
[1744744285576,6.21852284,1608.1,1607.8,4.44437673]
[1744744285787,6.21820508,1608.2,1607.8,10.66393401]
[1744744285989,7.03728853,1608.4,1608.0,9.83729013]
[1744744286256,13.25483389,1608.4,1608.1,6.21851495]
[1744744286461,13.25487406,1608.4,1608.0,9.83729013]
[1744744286710,7.03724536,1608.4,1608.1,6.21840851]
[1744744286906,6.21704217,1608.5,1608.1,13.26193888]
[1744744287114,0.7774,1608.6,1608.4,3.61867673]
[1744744287292,0.7802,1608.9,1608.5,1.3051]
[1744744287606,13.21155347,1608.9,1608.5,7.52185365]
[1744744287905,6.21624729,1608.7,1608.5,0.7551]
[1744744288202,6.21590632,1608.8,1608.5,6.21696408]
[1744744288497,6.21643808,1608.7,1608.4,3.61867673]
[1744744288702,6.2158668,1608.8,1608.4,9.89804718]
[1744744288901,6.2158668,1608.8,1608.5,6.21691902]
[1744744289103,6.2158668,1608.8,1608.4,9.89804718]
[1744744289104,6.21632361,1608.7,1608.4,3.0]
[1744744289257,12.43287231,1608.7,1608.4,3.0]
[1744744289462,6.21669974,1608.6,1608.3,10.65904919]
[1744744290108,12.43266357,1608.7,1608.3,16.8766855]
[1744744290507,12.43264035,1608.7,1608.4,6.2173388]
[1744744290661,0.7802,1608.9,1608.4,7.07950573]
[1744744291004,6.21658771,1608.6,1608.4,0.8]
[1744744291303,12.43335509,1608.6,1608.4,0.8]
[1744744291540,12.43337555,1608.6,1608.4,0.8]
[1744744291811,6.21658771,1608.6,1608.4,0.8]
[1744744293082,6.2162392,1608.7,1608.4,7.01723049]
[1744744293391,12.43188375,1608.8,1608.4,13.23447477]
[1744744293590,12.43188375,1608.8,1608.4,13.23447052]
[1744744293773,6.216355,1608.7,1608.4,7.01723049]
[1744744294122,0.805,1608.5,1608.4,0.8]
[1744744294393,7.02197233,1608.5,1608.4,0.8]
[1744744296081,12.43616906,1608.3,1608.0,0.7641]
[1744744296595,12.43601023,1608.3,1608.0,6.98300004]
[1744744296791,12.43583927,1608.3,1608.0,6.98300004]
[1744744297094,6.21791357,1608.3,1608.0,13.20180183]
[1744744297393,6.21791357,1608.3,1608.0,6.98286354]
[1744744297595,6.21851874,1608.1,1607.8,4.93627673]
[1744744297798,12.43736998,1608.1,1607.8,4.38627673]
[1744744297971,12.43802571,1608.0,1607.8,4.38627673]
[1744744298195,12.43812932,1608.0,1607.8,4.38627673]
[1744744298399,6.21894487,1608.0,1607.8,4.38627673]
[1744744299275,6.21894487,1608.0,1607.8,3.61867673]
[1744744299593,12.4382333,1608.0,1607.8,3.61867673]
[1744744300296,12.4382333,1608.0,1607.7,9.96907673]
[1744744300485,6.21894487,1608.0,1607.7,16.18901982]
[1744744300797,12.43806722,1608.0,1607.8,0.7]
[1744744301197,6.21929224,1607.9,1607.8,0.7]
[1744744301411,8.23909896,1607.9,1607.8,0.7]
[1744744302112,6.22039561,1607.7,1607.3,7.00805671]
[1744744302488,6.2205227,1607.6,1607.3,13.22953239]
[1744744303482,0.7726,1607.6,1607.3,0.7866]
[1744744303677,6.22099229,1607.5,1607.3,0.7866]
[1744744304315,6.22099229,1607.5,1607.2,15.36653693]
[1744744304316,6.22099229,1607.5,1607.2,16.12183693]
[1744744304921,6.2213481,1607.4,1607.2,5.526]
[1744744305423,6.2213481,1607.4,1607.1,3.63867673]
[1744744305791,6.220913,1607.5,1607.1,0.02]
[1744744305792,6.22100433,1607.5,1607.1,0.02]
[1744744306011,6.99315944,1607.6,1607.2,9.84065779]
[1744744306323,12.44054674,1607.7,1607.4,3.61867673]
[1744744306519,6.22046482,1607.6,1607.4,3.61867673]
[1744744306822,6.22057754,1607.6,1607.3,0.7789]
[1744744307535,12.44122464,1607.6,1607.3,0.7789]
[1744744307886,6.22084658,1607.5,1607.3,0.7789]
[1744744308419,12.44189514,1607.5,1607.3,0.7789]
[1744744308599,6.22084658,1607.5,1607.3,0.7789]
[1744744309236,12.44188329,1607.5,1607.3,0.7789]
[1744744309438,12.44183276,1607.5,1607.3,0.7789]
[1744744309636,6.22084658,1607.5,1607.3,0.7789]
[1744744310743,6.22084658,1607.5,1607.4,0.7]
[1744744311707,6.22084658,1607.5,1607.3,0.7789]
[1744744312645,6.22056281,1607.6,1607.3,7.00041152]
[1744744312819,12.44038391,1607.7,1607.4,6.22110734]
[1744744313021,12.44038391,1607.7,1607.3,13.22190884]
[1744744313217,12.4403896,1607.7,1607.4,6.22111247]
[1744744315308,6.22049908,1607.6,1607.3,7.00048271]
[1744744315508,6.22017216,1607.7,1607.3,7.00048271]
[1744744315509,6.22012152,1607.7,1607.3,7.00040721]
[1744744315709,6.22036968,1607.7,1607.4,0.7]
[1744744315931,12.44082087,1607.7,1607.4,0.7]
[1744744316136,6.220626,1607.6,1607.4,0.7]
[1744744317021,12.44124308,1607.6,1607.4,0.7]
[1744744317222,6.22061708,1607.6,1607.4,0.7]
[1744744317548,6.22060293,1607.6,1607.4,0.7]
[1744744317912,6.22083981,1607.5,1607.4,0.7]
[1744744318112,12.44124592,1607.6,1607.4,0.7]
[1744744318554,6.22060293,1607.6,1607.4,0.7]
[1744744319760,12.44118656,1607.6,1607.4,0.7]
[1744744319923,12.44117368,1607.6,1607.4,0.7]
[1744744320121,12.441173,1607.6,1607.4,0.7]
[1744744320322,6.2205865,1607.6,1607.4,0.7]
[1744744320569,6.21950757,1607.9,1607.6,6.22033268]
[1744744320716,1.45245076,1607.9,1607.4,10.53977768]
[1744744320919,6.21992233,1607.8,1607.4,16.76089373]
[1744744321162,12.43993976,1607.8,1607.4,16.76089373]
[1744744321666,12.43993976,1607.8,1607.5,6.22076859]
[1744744321822,13.26934285,1607.9,1607.5,6.22083981]
[1744744322331,7.04989791,1607.9,1607.6,7.05065582]
[1744744322533,6.21939791,1607.9,1607.6,13.27098465]
[1744744322757,0.7853,1608.1,1607.6,7.05060262]
[1744744322958,6.21940818,1607.9,1607.6,10.66927935]
[1744744323351,12.43884011,1607.9,1607.6,10.66927935]
[1744744323532,0.7853,1608.1,1607.9,6.21899132]
[1744744323848,12.43687117,1608.2,1607.9,6.21899132]
[1744744324060,1.31990712,1608.2,1608.0,6.21875022]
[1744744324279,13.19811886,1608.3,1607.9,13.24985694]
[1744744324480,13.19811886,1608.3,1607.8,9.83827759]
[1744744324481,6.21872921,1608.1,1607.8,9.83827759]
[1744744324689,6.98115699,1608.0,1607.7,0.8115]
[1744744324871,6.98115699,1608.0,1607.7,10.03144994]
[1744744325689,6.98115699,1608.0,1607.7,16.25139988]
[1744744325979,6.98115699,1608.0,1607.7,10.03144994]
[1744744326186,6.98115699,1608.0,1607.7,16.25139633]
[1744744326484,6.98115699,1608.0,1607.7,16.25139566]
[1744744326689,13.20032071,1608.0,1607.7,10.03144639]
[1744744326888,13.20032071,1608.0,1607.7,7.03144639]
[1744744327059,6.98115699,1608.0,1607.7,7.03144639]
[1744744327592,13.20031895,1608.0,1607.7,7.03144639]
[1744744327906,6.9820905,1608.1,1607.8,6.21944371]
[1744744328204,13.20080968,1608.1,1607.8,6.21944371]
[1744744328907,13.200899,1608.1,1607.8,6.21944371]
[1744744329387,6.9820905,1608.1,1607.8,12.43902497]
[1744744329541,6.21825769,1608.2,1607.9,12.43844596]
[1744744329737,6.91643346,1608.2,1607.9,12.43836204]
[1744744329942,6.21854797,1608.1,1607.8,6.21931627]
[1744744330171,6.21854797,1608.1,1607.8,12.4388843]
[1744744330582,12.43738691,1608.1,1607.8,6.21931627]
[1744744331386,12.43728218,1608.1,1607.8,6.21931627]
[1744744331702,6.21893322,1608.0,1607.7,0.8115]
[1744744331848,6.21893322,1608.0,1607.7,10.64993018]
[1744744332046,13.75093854,1608.1,1607.8,6.21966809]
[1744744332584,13.75093854,1608.1,1607.8,6.21958261]
[1744744332887,6.2189136,1608.0,1607.7,10.65014863]
[1744744333038,0.62189136,1607.9,1607.5,7.44627673]
[1744744333243,6.21987999,1607.8,1607.5,6.22082522]
[1744744333481,6.22017416,1607.7,1607.4,17.21811665]
[1744744333683,7.01647416,1607.7,1607.4,16.76088519]
[1744744334053,7.01647416,1607.7,1607.4,10.53977713]
[1744744334391,8.3400557,1607.7,1607.4,4.31867673]
[1744744334551,14.56024977,1607.7,1607.4,9.83980727]
[1744744334745,14.56024977,1607.7,1607.4,9.83978866]
[1744744334746,8.3400557,1607.7,1607.4,9.83978866]
[1744744335069,7.01642845,1607.7,1607.4,9.83978866]
[1744744335269,0.7963,1607.7,1607.4,9.83978023]
[1744744335497,13.23671948,1607.7,1607.4,9.83978023]
[1744744335698,7.01647481,1607.7,1607.4,9.83978023]
[1744744336015,0.7963,1607.7,1607.5,6.22080321]
[1744744336717,6.99400699,1607.9,1607.5,6.22080321]
[1744744336885,6.99400699,1607.9,1607.6,6.22029038]
[1744744337078,0.7746,1607.9,1607.4,3.61867673]
[1744744337283,0.7746,1607.9,1607.7,6.21980963]
[1744744337521,6.21904474,1608.0,1607.6,16.86248091]
[1744744337699,6.21930089,1607.9,1607.6,16.86248091]
[1744744338006,13.69011495,1608.0,1607.7,6.22003167]
[1744744338383,6.21934077,1607.9,1607.6,16.86240795]
[1744744338685,12.43888825,1607.9,1607.6,6.22044998]
[1744744339023,12.43891257,1607.9,1607.6,6.22044998]
[1744744339327,0.7722,1607.8,1607.6,6.22035443]
[1744744339486,0.7722,1607.8,1607.3,6.22135525]
[1744744339487,6.2201856,1607.7,1607.5,3.0]
[1744744339683,12.44046237,1607.7,1607.4,6.22103939]
[1744744340002,6.2201856,1607.7,1607.4,12.44216026]
[1744744340206,6.2201856,1607.7,1607.4,6.22103939]
[1744744340607,6.2201856,1607.7,1607.4,12.44214742]
[1744744342123,13.2118321,1607.8,1607.5,6.22083306]
[1744744342284,8.45006764,1607.8,1607.5,6.22083306]
[1744744342724,14.67010299,1607.8,1607.5,6.22083306]
[1744744342926,13.26300109,1607.9,1607.6,6.22042078]
[1744744343303,7.04354786,1607.9,1607.6,6.22042078]
[1744744343506,7.04354786,1607.9,1607.6,6.22035457]
[1744744343826,7.04354786,1607.9,1607.4,12.44223839]
[1744744343827,0.8241,1607.9,1607.4,12.44223839]
[1744744344127,6.22005462,1607.8,1607.5,6.22072339]
[1744744344296,7.54640799,1607.8,1607.5,12.44144678]
[1744744344502,7.54616349,1607.8,1607.5,6.22072339]
[1744744344710,6.21981012,1607.8,1607.5,6.22072339]
[1744744345033,6.21981012,1607.8,1607.6,0.7]
[1744744345217,0.8241,1607.9,1607.6,7.78336709]